{"text_format":"1","workbook":"xlsx","n_sheets":3,"sheets":["MV obv bodemonderzoek","Splitsing partij","schoon-licht-matig-sterk"],"not_rendered":{"charts":0,"images":2,"macros":1,"external_links":0,"defined_names":8,"comments":1,"pivot_tables":0},"unopened":[],"bounds":{"document_bytes":16777216,"sheet_cells":100000,"rows_first":2000,"rows_last":500,"rows_between":2000,"halvings":0,"cell_chars":16384,"cell_head_chars":4096},"cells_cut":0,"cells_raw":0,"read":"whole","date_system":"1900"}

{"sheet":"MV obv bodemonderzoek","index":0,"n_rows":171,"n_cols":36,"rows_kept":171,"cut":false,"hidden":false,"merged":[[167,4,168,9],[170,4,171,9],[161,6,161,8],[89,6,89,9],[99,3,99,9],[113,3,113,9],[115,3,115,9],[157,1,158,9],[151,1,153,4],[97,5,97,9],[151,7,151,9],[152,7,152,8],[93,3,93,9],[95,3,95,9],[148,1,148,2],[153,7,155,9],[0,1,0,9],[59,1,59,9],[61,1,61,9],[63,1,63,9],[65,1,65,9],[62,1,62,9],[64,1,64,9],[31,1,31,9],[16,1,16,9],[17,1,17,9],[18,1,18,9],[20,1,20,9],[21,1,21,9],[22,1,22,9],[29,13,29,14],[30,13,30,14],[33,1,33,9],[34,1,34,9],[35,1,35,9],[29,1,29,2],[29,3,29,4],[30,1,30,2],[30,3,30,4],[29,7,29,9],[25,1,25,9],[27,1,27,9],[2,1,2,9],[26,1,26,9],[11,1,11,8],[12,1,12,8],[13,1,13,8],[5,6,6,8],[39,1,39,9],[48,6,48,7],[67,1,67,9],[37,1,37,9],[71,2,71,9],[53,2,53,9]]}
[null,"Milieuverklaring (bestemd voor eenmalig gebruik)",null,null,null,null,null,null,null,null,null,null,"Rbk 2022, par. 5.2 MV op basis van een bodemonderzoek"]
[]
[null,"Verklaring gebaseerd op een bodemonderzoek"]
[]
[]
[null,"Uniek nummer van de verklaring:",null,null,null,null,"<nummer>",null,null,null,null,null,"Rbk, art. 5.29 lid 1i",null,{"$f":"IF(G6=\"<nummer>\",1,0)","v":1}]
[null,null,null,null,null,null,null,null,null,null,null,null,null,null,null,null,null,null,null,null,null,"Grond","[rolmenu ↓]"]
[null,"Deze verklaring heeft betrekking op een partij",null,null,null,null,"grond",null,null,null,null,null,"Rbk, art. 5.29 lid 1a",true,{"$f":"IF(AND(N8=TRUE,N9=FALSE),1,0)","v":1},null,null,null,null,null,null,null,"Landbouw/Natuur (AW2000)"]
[null,null,null,{"$f":"IF(AND(O8=0,O9=0),\"1 hokje aanvinken\",\"\")","v":""},null,null,"baggerspecie",null,null,null,null,null,"Rbk, art. 5.29 lid 1a",false,{"$f":"IF(AND(N8=FALSE,N9=TRUE),1,0)","v":0},null,null,null,null,null,null,null,"Wonen"]
[null,null,null,null,null,null,null,null,null,null,null,null,null,null,null,null,null,null,null,null,null,null,"Industrie"]
[null,"Beperking van de geldigheid van de MV",null,null,null,null,null,null,null,null,null,null,null,null,null,null,null,null,null,null,null,null,"Matig verontreinigd"]
[null,"\"Een verklaring op grond van een bodemonderzoek is bestemd voor eenmalig gebruik bij het toepassen van een partij grond",null,null,null,null,null,null,null,null,null,null,"Rbk, art. 5.28 lid 1",null,null,null,null,null,null,null,null,null,"Sterk verontreinigd"]
[null,"of baggerspecie die uit de onderzochte bodemlocatie is ontgraven en waarvoor zij is afgegeven, en wordt niet afgegeven als",null,null,null,null,null,null,null,null,null,null,null,null,null,null,null,null,null,null,null,null,"Niet-toepasbaar"]
[null,"voor de apartij al een andere verklaring bodemkwaliteit is afgegeven.\"",null,null,null,null,null,null,null,null,null,null,null,null,null,null,null,null,null,null,null,null,"n.v.t."]
[]
[null,"Naam en adres van de persoon die het bodemonderzoek heeft verricht",null,null,null,null,null,null,null,null,null,null,"Rbk, art. 5.29 lid 1b"]
[null,"<naam>",null,null,null,null,null,null,null,null,null,null,null,null,{"$f":"IF(B17=\"<naam>\",1,0)","v":1}]
[null,"<postcode en plaats>",null,null,null,null,null,null,null,null,null,null,null,null,{"$f":"IF(B18=\"<postcode en plaats>\",1,0)","v":1}]
[null,"<straatnaam en nummer>",null,null,null,null,null,null,null,null,null,null,null,null,{"$f":"IF(B19=\"<straatnaam en nummer>\",1,0)","v":1}]
[null,"Naam en adres van de persoon die onderhavige verklaring afgeeft",null,null,null,null,null,null,null,null,null,null,"Rbk, art. 5.29 lid 1c"]
[null,"<naam>",null,null,null,null,null,null,null,null,null,null,null,null,{"$f":"IF(B21=\"<naam>\",1,0)","v":1}]
[null,"<postcode en plaats>",null,null,null,null,null,null,null,null,null,null,null,null,{"$f":"IF(B22=\"<postcode en plaats>\",1,0)","v":1}]
[null,"<straatnaam en nummer>",null,null,null,null,null,null,null,null,null,null,null,null,{"$f":"IF(B23=\"<straatnaam en nummer>\",1,0)","v":1}]
[null,null,null,null,null,null,null,null,null,null,null,null,null,null,null,null,null,null,null,null,null,null,"'emissiearme baggerspecie' voor grootschalig toepassen baggerspecie op of in de landbodem of een oppervlaktewaterlichaam"]
[null,"Nauwkeurige aanduiding of beschrijving van de onderzochte bodemlocatie",null,null,null,null,null,null,null,null,null,null,"Rbk, art. 5.29 lid 1d",null,null,null,null,null,null,null,null,null,"'voor toepassen in een diepe plas geschikte grond'"]
[null,"<naam/omschrijving>",null,null,null,null,null,null,null,null,null,null,null,null,{"$f":"IF(B26=\"<naam/omschrijving>\",1,0)","v":1},null,null,null,null,null,null,null,"'voor toepassen als afdeklaag in een diepe plas geschikte grond'"]
[null,"<postcode en plaats>",null,null,null,null,null,null,null,null,null,null,null,null,{"$f":"IF(B27=\"<postcode en plaats>\",1,0)","v":1},null,null,null,null,null,null,null,"'tarragrond' voor het toepassen van tarragrond op de landbodem"]
[null,"<straatnaam en nummer>",null,null,null,null,null,null,null,null,null,null,null,null,{"$f":"IF(B28=\"<straatnaam en nummer>\",1,0)","v":1},null,null,null,null,null,null,null,"n.v.t."]
[null,"Coördinaten"]
[null,"X-coördinaat",null,null,null,null,{"$f":"IF(ISNUMBER(D30)=TRUE,\"=GPS\",\"\")","v":""},{"$f":"IF(ISNUMBER(D30)=TRUE,U32,\"\")","v":""},null,null,null,null,null,"<X-coördinaat>",null,null,{"$f":"IF(D30=\"<coordinaat>\",\"\",IF(D30>0,(52.15517+(SUM((((((3235.65389*((D31-463000)*10^-5))+(-32.58297*((D30-155000)*10^-5)^2)+(-0.2475*((D31-463000)*10^-5)^2)+(-0.84978*((D30-155000)*10^-5)^2*((D31-463000)*10^-5))+(-0.0655*((D31-463000)*10^-5)^3)+(-0.01709*((D30-155000)*10^-5)^2*((D31-463000)*10^-5)^2)+(-0.00738*((D30-155000)*10^-5))+(0.0053*((D30-155000)*10^-5)^4)+(-0.00039*((D30-155000)*10^-5)^2*((D31-463000)*10^-5)^3)+(0.00033*((D30-155000)*10^-5)^4*((D31-463000)*10^-5))+(-0.00012*((D30-155000)*10^-5)*((D31-463000)*10^-5)))))))/3600)),\"\"))","v":""},{"$f":"ROUND(Q30,6)","v":{"$error":"#VALUE!"}},null,{"$f":"ISNUMBER(D30)","v":false},{"$f":"SUBSTITUTE(R30,\",\",\".\")","v":{"$error":"#VALUE!"}},null,"Voorbeeld",null,"Markt 1 Geleen",null,null,"X",185875]
[null,"Y-coördinaat",null,null,null,null,null,null,null,null,null,null,null,"<Y-coördinaat>",null,null,{"$f":"IF(D31=\"<coordinaat>\",\"\",IF(D31>0,(5.387206+(SUM((((((5260.52916*((D30-155000)*10^-5))+(105.94684*((D30-155000)*10^-5)*((D31-463000)*10^-5))+(2.45656*((D30-155000)*10^-5)*((D31-463000)*10^-5)^2)+(-0.81885*((D30-155000)*10^-5)^3)+(0.05594*((D30-155000)*10^-5)*((D31-463000)*10^-5)^3)+(-0.05607*((D30-155000)*10^-5)^3*((D31-463000)*10^-5))+(0.01199*((D31-463000)*10^-5))+(-0.00256*((D30-155000)*10^-5)^3*((D31-463000)*10^-5)^2)+(0.00128*((D30-155000)*10^-5)*((D31-463000)*10^-5)^4)+(0.00022*((D31-463000)*10^-5)^2)+(-0.00022*((D30-155000)*10^-5)^2)+(0.00026*((D30-155000)*10^-5)^5))))))/3600)),\"\"))","v":""},{"$f":"ROUND(Q31,6)","v":{"$error":"#VALUE!"}},null,{"$f":"ISNUMBER(D31)","v":false},{"$f":"SUBSTITUTE(R31,\",\",\".\")","v":{"$error":"#VALUE!"}},null,null,null,null,null,null,"Y",331246]
[null,"<anders>",null,null,null,null,null,null,null,null,null,null,null,null,{"$f":"IF(B32=\"<anders>\",1,0)","v":1},null,null,null,null,null,{"$f":"U30&\", \"&U31","v":{"$error":"#VALUE!"}}]
[null,"Beschrijving van de belangrijkste kenmerken van de onderzochte bodemlocatie",null,null,null,null,null,null,null,null,null,null,"Rbk, art. 5.29 lid 1d",null,null,null,null,null,null,null,null,"Bagger","[rolmenu ↓]"]
[null,"<kenmerken 1>",null,null,null,null,null,null,null,null,null,null,null,null,{"$f":"IF(B34=\"<kenmerken 1>\",1,0)","v":1},null,null,null,null,null,null,null,"Algemeen toepasbaar (AW2000)"]
[null,"<kenmerken 2>",null,null,null,null,null,null,null,null,null,null,null,null,{"$f":"IF(B35=\"<kenmerken 2>\",1,0)","v":1},null,null,null,null,null,null,null,"Licht verontreinigd"]
[null,"<kenmerken 3>",null,null,null,null,null,null,null,null,null,null,null,null,{"$f":"IF(B36=\"<kenmerken 3>\",1,0)","v":1},null,null,null,null,null,null,null,"Matig verontreinigd"]
[null,"Het unieke nummer van het rapport van het vooronderzoek",null,null,null,null,null,null,null,null,null,null,"Rbk, art. 5.29 lid 1e",null,null,null,null,null,null,null,null,null,"Sterk verontreinigd"]
[null,"<uniek nummer rapport>",null,null,null,null,null,null,null,null,null,null,null,null,{"$f":"IF(B38=\"<uniek nummer rapport>\",1,0)","v":1},null,null,null,null,null,null,null,"Niet-toepasbaar"]
[null,"Het unieke nummer van het rapport van het bodemonderzoek",null,null,null,null,null,null,null,null,null,null,"Rbk, art. 5.29 lid 1f",null,null,null,null,null,null,null,null,null,"n.v.t."]
[null,"<uniek nummer rapport>",null,null,null,null,null,null,null,null,null,null,null,null,{"$f":"IF(B40=\"<uniek nummer rapport>\",1,0)","v":1}]
[null,"Nauwkeurige omschrijving van het type grond of baggerspecie",null,null,null,null,null,null,null,null,null,null,"Rbk, art. 5.29 lid 1g1"]
[null,"type grond",null,"[rolmenu ↓]",{"$f":"IF(D42=\"[rolmenu ↓]\",\"\",VLOOKUP(D42,AA42:AB48,2,FALSE))","v":""},null,null,null,null,null,null,null,null,null,{"$f":"IF(D42=\"[rolmenu ↓]\",1,0)","v":1},null,null,null,null,null,null,null,null,null,null,null,"code bodemsoort","bodemsoort","code toevoeging bodemsoort","toevoeging","code gradatie toevoeging bodemsoort","gradatie","code bijzonderbestanddeel","bijzonderbestanddeel","code gradatie bijzonder bestanddeel","gradatie"]
[null,"toevoeging",null,"[rolmenu ↓]",{"$f":"IF(D43=\"[rolmenu ↓]\",\"\",VLOOKUP(D43,AC42:AD49,2,FALSE))","v":""},null,null,null,null,null,null,null,null,null,{"$f":"IF(D43=\"[rolmenu ↓]\",1,0)","v":1},{"$f":"IF(D43=\"n.v.t.\",1,0)","v":0},null,null,null,null,null,null,null,null,null,null,"[rolmenu ↓]","[rolmenu ↓]","[rolmenu ↓]","[rolmenu ↓]","[rolmenu ↓]","[rolmenu ↓]","[rolmenu ↓]","[rolmenu ↓]","[rolmenu ↓]","[rolmenu ↓]"]
[null,"gradatie",null,"[rolmenu ↓]",{"$f":"IF(D44=\"[rolmenu ↓]\",\"\",VLOOKUP(D44,AE44:AF48,2,FALSE))","v":""},null,null,null,null,null,null,null,null,null,1,null,null,null,null,null,null,null,null,null,null,null,"L","leem","S","siltig",1,"zwak","AA","aardewerk",1,"zwak 1-5%"]
[null,"bijzonder bestanddeel",null,"[rolmenu ↓]",{"$f":"IF(D45=\"[rolmenu ↓]\",\"\",VLOOKUP(D45,AG43:AH100,2,FALSE))","v":""},"[rolmenu ↓]",{"$f":"IF(F45=\"[rolmenu ↓]\",\"\",VLOOKUP(F45,AG43:AH100,2,FALSE))","v":""},"[rolmenu ↓]",{"$f":"IF(H45=\"[rolmenu ↓]\",\"\",VLOOKUP(H45,AG43:AH100,2,FALSE))","v":""},null,null,null,null,null,1,null,1,{"$f":"IF(D45=\"n.v.t.\",1,0)","v":0},1,null,null,null,null,null,null,null,"Z","zand","Z","zandig",2,"matig","AB","asbest",2,"matig 5-10%"]
[null,"gradatie",null,"[rolmenu ↓]",{"$f":"IF(D46=\"[rolmenu ↓]\",\"\",VLOOKUP(D46,AI44:AJ53,2,FALSE))","v":""},"[rolmenu ↓]",{"$f":"IF(F46=\"[rolmenu ↓]\",\"\",VLOOKUP(F46,AI44:AJ53,2,FALSE))","v":""},"[rolmenu ↓]",{"$f":"IF(H46=\"[rolmenu ↓]\",\"\",VLOOKUP(H46,AI44:AJ53,2,FALSE))","v":""},null,null,null,null,null,1,{"$f":"IF(F46=\"[rolmenu ↓]\",1,0)","v":1},{"$f":"IF(H46=\"[rolmenu ↓]\",1,0)","v":1},null,null,null,null,null,null,null,null,null,"K","klei","K","kleiig",3,"sterk","AF","afval",3,"sterk 10-20%"]
[null,null,null,null,null,null,null,null,null,null,null,null,null,null,null,null,null,null,null,null,null,null,null,null,null,null,"G","grind","G","grindig",4,"uiterst","AS","asfalt",4,"uiterst 20-50%"]
[null,"De grootte van de partij",null,null,null,null,null,null,null,null,null,null,null,null,null,null,null,null,null,null,null,null,null,null,null,null,"V","veen","H","humeus","n.v.t.","n.v.t.","BA","baksteen",5,"volledig >50%"]
[null,"<ton>","ton","<m3>","m3",null,{"$f":"IF(AND(N49=TRUE,O49=TRUE),\"dichtheid (ton/m3): \",\"\")","v":""},null,{"$f":"IF(AND(N49=TRUE,O49=TRUE),B49/D49,\"\")","v":""},null,null,null,"Rbk, art. 5.29 lid 1g2",{"$f":"ISNUMBER(B49)","v":false},{"$f":"ISNUMBER(D49)","v":false},null,null,null,null,null,null,"specifiek","[rolmenu ↓]",null,null,null,null,null,"n.v.t.","n.v.t.",null,null,"BE","beton",6,"sporen"]
[null,null,null,null,null,null,null,null,null,null,null,null,null,null,null,null,null,null,null,null,null,null,"'emissiearme baggerspecie' voor grootschalig toepassen baggerspecie op of in de landbodem of een oppervlaktewaterlichaam",null,null,null,null,null,null,null,null,null,"BI","bitumen",7,"resten"]
[null,"Kwaliteitsklasse waarin de partij grond is ingedeeld",null,null,null,null,null,null,null,null,null,null,"Rbk, art. 5.29 lid 1g3",null,null,null,null,null,null,null,null,null,"'voor verspreiden op de landbodem geschikte baggerspecie' voor het verspreiden van baggerspecie op de landbodem",null,null,null,null,null,null,null,null,null,"BL","ballast",8,"brokken"]
[null,"klasse:","[rolmenu ↓]",null,null,null,null,null,null,null,null,null,null,{"$f":"IF($O$8=1,O52=1)","v":true},{"$f":"IF(C52=\"[rolmenu ↓]\",1,0)","v":1},null,null,null,null,null,null,null,"'voor verspreiden in zoet oppervlaktewater geschikte baggerspecie'",null,null,null,null,null,null,null,null,null,"BR","bruinkool",9,"laagjes"]
[null,"Specifieke kwaliteit van de partij grond",null,null,null,null,null,null,null,null,null,null,"Rbk, art. 5.29 lid 1g4",null,null,null,null,null,null,null,null,null,"'voor verspreiden in zout oppervlaktewater geschikte baggerspecie'",null,null,null,null,null,null,null,null,null,"GC","glauconiet","n.v.t.","n.v.t."]
[null,"s.k.:","[rolmenu ↓]",null,null,null,null,null,null,null,null,null,null,{"$f":"IF($O$8=1,O54=1)","v":true},{"$f":"IF(C54=\"[rolmenu ↓]\",1,0)","v":1},null,null,null,null,null,null,null,"'voor toepassen in een diepe plas geschikte baggerspecie'",null,null,null,null,null,null,null,null,null,"GI","gips"]
[null,"Kwaliteitsklasse waarin de partij baggerspecie is ingedeeld",null,null,null,null,null,null,null,null,null,null,"Rbk, art. 5.29 lid 1g3",null,null,null,null,null,null,null,null,null,"'voor toepassing als deklaag in een diepe plas geschikte baggerspecie'",null,null,null,null,null,null,null,null,null,"GL","gley"]
[null,"klasse:","[rolmenu ↓]",null,null,null,null,null,null,null,null,null,null,{"$f":"IF($O$9=1,O56=1)","v":false},{"$f":"IF(C56=\"[rolmenu ↓]\",1,0)","v":1},null,null,null,null,null,null,null,"n.v.t.",null,null,null,null,null,null,null,null,null,"GR","grind"]
[null,"Specifieke kwaliteit van de partij baggerspecie",null,null,null,null,null,null,null,null,null,null,"Rbk, art. 5.29 lid 1g4",null,null,null,null,null,null,null,null,null,null,null,null,null,null,null,null,null,null,null,"GS","glas"]
[null,"s.k.:","[rolmenu ↓]",null,null,null,null,null,null,null,null,null,null,{"$f":"IF($O$9=1,O58=1)","v":false},{"$f":"IF(C58=\"[rolmenu ↓]\",1,0)","v":1},null,null,null,null,null,null,null,null,null,null,null,null,null,null,null,null,null,"HK","houtskool"]
[null,"Eventueel onderzochte andere verontreinigingen dan in Rbk, bijl. B genoemd",null,null,null,null,null,null,null,null,null,null,"Rbk, art. 5.29 lid 1g5",null,null,null,null,null,null,null,null,null,null,null,null,null,null,null,null,null,null,null,"HO","houtskool"]
[null,"<andere dan bijl. B>",null,null,null,null,null,null,null,null,null,null,null,null,{"$f":"IF(B60=\"<andere dan bijl. B>\",1,0)","v":1},null,null,null,null,null,null,null,null,null,null,null,null,null,null,null,null,null,"HU","huisvuil"]
[null,"Eventueel andere relevante parameters (concentraties, emissies, waarden)",null,null,null,null,null,null,null,null,null,null,"Rbk, art. 5.29 lid 1g5",null,null,null,null,null,null,null,null,null,null,null,null,null,null,null,null,null,null,null,"KA","kalk"]
[null,"<conc. etc.>",null,null,null,null,null,null,null,null,null,null,null,null,{"$f":"IF(B62=\"<conc. etc.>\",1,0)","v":1},null,null,null,null,null,null,null,null,null,null,null,null,null,null,null,null,null,"KE","keileem"]
[null,"Aard van het (antropogene) bodemvreemde materiaal",null,null,null,null,null,null,null,null,null,null,"Rbk, art. 5.29 lid 1g6",null,null,null,null,null,null,null,null,null,null,null,null,null,null,null,null,null,null,null,"KG","kolengruis"]
[null,"<aard bodemvreemd>",null,null,null,null,null,null,null,null,null,null,null,null,{"$f":"IF(B64=\"<aard bodemvreemd>\",1,0)","v":1},null,null,null,null,null,null,null,null,null,null,null,null,null,null,null,null,null,"KL","klei"]
[null,"Hoeveelheid van het (antropogene) materiaal (% V/V)",null,null,null,null,null,null,null,null,null,null,"Rbk, art. 5.29 lid 1g6",null,null,null,null,null,null,null,null,null,null,null,null,null,null,null,null,null,null,null,"KO","kolen"]
[null,"<hoeveelheid bodemvreemd>",null,null,null,null,null,null,null,null,null,null,null,null,{"$f":"IF(B66=\"<hoeveelheid bodemvreemd>\",1,0)","v":1},null,null,null,null,null,null,null,null,null,null,null,null,null,null,null,null,null,"KR","krijt"]
[null,"Eventuele voorwaarden en beperkingen volgens producent/leverancier",null,null,null,null,null,null,null,null,null,null,"Rbk, art. 5.29 lid 1h",null,null,null,null,null,null,null,null,null,null,null,null,null,null,null,null,null,null,null,"KS","kalksteen"]
[null,"<omschrijving>",null,null,null,null,null,null,null,null,null,null,null,null,{"$f":"IF(B68=\"<omschrijving>\",1,0)","v":1},null,null,null,null,null,null,null,null,null,null,null,null,null,null,null,null,null,"LE","leem"]
[null,null,null,null,null,null,null,null,null,null,null,null,null,null,null,null,null,null,null,null,null,null,null,null,null,null,null,null,null,null,null,null,"LL","lavalith"]
[null,"Afgeven van een verklaring op grond van een bodemonderzoek (AP04; NEN5740-AP04 of NEN 5720)",null,null,null,null,null,null,null,null,null,null,"Rbk, art. 5.28",null,null,null,null,null,null,null,null,null,null,null,null,null,null,null,null,null,null,null,"OF","olie(fractie)"]
[null,null,"de partij is ontgraven uit de onderzochte bodemlocatie",null,null,null,null,null,null,null,null,null,null,null,false,null,null,null,null,null,null,null,null,null,null,null,null,null,null,null,null,null,"OG","oliegeur"]
[null,null,"<locatie>",null,null,null,null,null,null,null,null,null,"Rbk, art. 5.28 lid 1",null,{"$f":"IF(C72=\"<locatie>\",1,0)","v":1},null,null,null,null,null,null,null,null,null,null,null,null,null,null,null,null,null,"PC","plastic"]
[null,null,null,null,null,null,null,null,null,null,null,null,null,null,null,null,null,null,null,null,null,null,null,null,null,null,null,null,null,null,null,null,"PL","planten"]
[null,"eisen",null,"er is vooronderzoek en bodemonderzoek conform de Rbk verricht",null,null,null,null,null,null,null,null,"Rbk, art. 5.28 lid 2a",null,false,null,null,null,null,null,null,null,null,null,null,null,null,null,null,null,null,null,"PO","potklei"]
[null,null,null,"er is vooronderzoek NEN5725/NEN5717 verricht conform Rbk, art 5.20 eerste lid",null,null,null,null,null,null,null,null,"Rbk, art. 5.28 lid 2b",null,false,null,null,null,null,null,null,null,null,null,null,null,null,null,null,null,null,null,"PU","puin"]
[null,null,null,"er is AP04 bodemonderzoek uitgevoerd conform Rbk, art 5.27 eerste lid",null,null,null,null,null,null,null,null,"Rbk, art. 5.28 lid 2c",null,false,null,null,null,null,null,null,null,null,null,null,null,null,null,null,null,null,null,"RI","tietresten"]
[null,null,null,"de partij wijkt niet af van de in het rapport beschreven partij (tenzij deze is gesplitst)",null,null,null,null,null,null,null,null,"Rbk, art. 5.28 lid 2d",null,false,null,null,null,null,null,null,null,null,null,null,null,null,null,null,null,null,null,"RO","roest"]
[null,null,null,"de partij is niet door samenvoegen van partijen ontstaan",null,null,null,null,null,null,null,null,null,null,false,null,null,null,null,null,null,null,null,null,null,null,null,null,null,null,null,null,"LO","löss"]
[null,null,null,"de partij is voor de onderzocht stoffen (Rbk, bijl. B) in een kwaliteitsklasse ingedeeld",null,null,null,null,null,null,null,null,null,null,false,null,null,null,null,null,null,null,null,null,null,null,null,null,null,null,null,null,"LS","leisteen"]
[null,null,null,"indien andere stoffen aanwezig zijn hier melding van is gemaakt (zie verderop)",null,null,null,null,null,null,null,null,null,null,false,null,null,null,null,null,null,null,null,null,null,null,null,null,null,null,null,null,"ME","metaal"]
[null,null,null,"indien bodemvreemd materiaal voorkomt hier melding van is gemaakt (zie verderop)",null,null,null,null,null,null,null,null,null,null,false,null,null,null,null,null,null,null,null,null,null,null,null,null,null,null,null,null,"MI","mijnsteen"]
[null,null,null,null,null,null,null,null,null,null,null,null,null,null,null,null,null,null,null,null,null,null,null,null,null,null,null,null,null,null,null,null,"OE","oer"]
[null,null,null,null,null,null,null,null,null,null,null,null,null,null,null,null,null,null,null,null,null,null,null,null,null,null,null,null,null,null,null,null,"RP","repac"]
[null,null,"de partij is onderzocht op de volgende pakketten:",null,null,null,null,null,null,null,null,null,null,null,null,null,null,null,null,null,null,null,null,null,null,null,null,null,null,null,null,null,"SB","slib"]
[null,null,null,"Pakket A",null,null,null,null,null,null,null,null,null,null,false,null,null,null,null,null,null,null,null,null,null,null,null,null,null,null,null,null,"SC","schelpen"]
[null,null,null,"Pakket C1",null,null,null,null,null,null,null,null,null,null,false,null,null,null,null,null,null,null,null,null,null,null,null,null,null,null,null,null,"SI","sintels"]
[null,null,null,"Pakket C2",null,null,null,null,null,null,null,null,null,null,false,null,null,null,null,null,null,null,null,null,null,null,null,null,null,null,null,null,"SL","slakken"]
[null,null,null,"Pakket C3",null,null,null,null,null,null,null,null,null,null,false,null,null,null,null,null,null,null,null,null,null,null,null,null,null,null,null,null,"SO","stoll"]
[null,null,null,"Pakket D",null,null,null,null,null,null,null,null,null,null,false,null,null,null,null,null,null,null,null,null,null,null,null,null,null,null,null,null,"ST","stenen"]
[null,null,null,"Uitloging op parameter(s):",null,null,"<parameter(s)>",null,null,null,null,null,null,null,false,null,null,null,null,null,null,null,null,null,null,null,null,null,null,null,null,null,"SX","silex"]
[null,null,null,"Aanvullende parameters: PFAS",null,null,null,null,null,null,null,null,null,null,false,null,null,null,null,null,null,null,null,null,null,null,null,null,null,null,null,null,"TA","teelaarde"]
[null,null,null,"Aanvullende parameters: Asbest",null,null,null,null,null,null,null,null,null,null,false,null,null,null,null,null,null,null,null,null,null,null,null,null,null,null,null,null,"TX","textiel"]
[null,null,null,"Aanvullende parameters buiten het standaardpakket en genoemd in bijlage B:",null,null,null,null,null,null,null,null,null,null,false,null,null,null,null,null,null,null,null,null,null,null,null,null,null,null,null,null,"VE","veen"]
[null,null,null,"<parameter(s)>",null,null,null,null,null,null,null,null,null,null,{"$f":"IF(D94=\"<parameter(s)>\",1,0)","v":1},null,null,null,null,null,null,null,null,null,null,null,null,null,null,null,null,null,"VF","verf"]
[null,null,null,"Aanvullende parameters anders dan genoemd in bijlage B (zorgplicht):",null,null,null,null,null,null,null,null,null,null,false,null,null,null,null,null,null,null,null,null,null,null,null,null,null,null,null,null,"VL","vliegas"]
[null,null,null,"<parameter(s)>",null,null,null,null,null,null,null,null,null,null,{"$f":"IF(D96=\"<parameter(s)>\",1,0)","v":1},null,null,null,null,null,null,null,null,null,null,null,null,null,null,null,null,null,"WO","wortels"]
[null,null,null,"de partij bevat (antropogeen) bodemvreemd materiaal:",null,null,null,null,null,null,null,null,null,null,false,null,null,null,null,null,null,null,null,null,null,null,null,null,null,null,null,null,"YZ","ijzer"]
[null,null,null,"percentage (V/V)",null,"<percentage>",null,null,null,null,null,null,null,null,false,{"$f":"IF(F98=\"<percentage>\",1,0)","v":1},null,null,null,null,null,null,null,null,null,null,null,null,null,null,null,null,"ZA","zand"]
[null,null,null,"aard van het bodemvreemde materiaal:",null,null,null,null,null,null,null,null,null,null,false,null,null,null,null,null,null,null,null,null,null,null,null,null,null,null,null,null,"PS","piepschuim"]
[null,null,null,"<aard>",null,null,null,null,null,null,null,null,null,null,{"$f":"IF(D100=\"<aard>\",1,0)","v":1},null,null,null,null,null,null,null,null,null,null,null,null,null,null,null,null,null,"n.v.t.","n.v.t"]
[]
[null,null,"Deze partij is gekwalificeerd voor toepassing op of in de landbodem, en",null,null,null,null,null,null,null,null,null,null,null,false]
[null,null,null,"voldoet aan de kwaliteitsklasse Landbouw/Natuur (kwaliteit AW2000)",null,null,null,null,null,null,null,null,"Rbk, 5.25 lid 1 onder a",null,false]
[null,null,null,"voldoet aan de kwaliteitsklasse Wonen",null,null,null,null,null,null,null,null,"Rbk, 5.25 lid 1 onder a",null,false]
[null,null,null,"voldoet aan de kwaliteitsklasse Industrie",null,null,null,null,null,null,null,null,"Rbk, 5.25 lid 1 onder a",null,false]
[null,null,null,"voldoet aan de kwaliteitsklasse Matig verontreinigd",null,null,null,null,null,null,null,null,"Rbk, 5.25 lid 1 onder a",null,false]
[null,null,null,"voldoet aan de kwaliteitsklasse Sterk verontreinigd",null,null,null,null,null,null,null,null,"Rbk, 5.25 lid 1 onder a",null,false]
[]
[]
[null,null,"De partij is aanvullend gekwalificeerd voor de volgende toepassing:"]
[null,null,null,"voldoet aan de emissiewaarden voor toepassing op grootschalige ",null,null,null,null,null,null,null,null,null,null,false]
[null,null,null,"bodemtoepassing (GBT)"]
[null,null,null,"voldoet aan de lokale maximale waarden (LMW) binnen gebied",null,null,null,null,null,null,null,null,null,null,false]
[null,null,null,"<gebied>",null,null,null,null,null,null,null,null,null,null,{"$f":"IF(D114=\"<gebied>\",1,0)","v":1}]
[null,null,null,"van bodembeheernota",null,null,null,null,null,null,null,null,null,null,false]
[null,null,null,"<bodembeheernota>",null,null,null,null,null,null,null,null,null,null,false]
[null,null,"vermelding dat de partijgrond een specifieke kwaliteit bezit ",null,null,null,null,null,null,null,null,null,"Rbk, art. 5.26 lid 1 en Rbk, art. 1.1 onder 2",null,false]
[null,null,"(vereist voor de vermelde specifieke toepassing volgens § 4.124 BAL)"]
[null,null,null,"'emissiearme baggerspecie' voor grootschalig toepassen baggerspecie ",null,null,null,null,null,null,null,null,null,null,false]
[null,null,null,"op of in de landbodem of een oppervlaktewaterlichaam"]
[null,null,null,"'voor toepassen in een diepe plas geschikte grond'",null,null,null,null,null,null,null,null,null,null,false]
[null,null,null,"'voor toepassen als afdeklaag in een diepe plas geschikte grond'",null,null,null,null,null,null,null,null,null,null,false]
[null,null,null,"'tarragrond' voor het toepassen van tarragrond op de landbodem",null,null,null,null,null,null,null,null,null,null,false]
[]
[null,null,"Deze partij is gekwalificeerd voor toepassing op of in de bodem of oever ",null,null,null,null,null,null,null,null,null,null,null,false]
[null,null,"van een oppervlaktewaterlichaam, en"]
[null,null,null,"is geen tarragrond",null,null,null,null,null,null,null,null,"Rbk, 5.25 lid 6",null,false]
[null,null,null,"voldoet aan de kwaliteitsklasse Algemeen toepasbaar (kwaliteit AW2000)",null,null,null,null,null,null,null,null,"Rbk, 5.25 lid 1 onder b",null,false]
[null,null,null,"voldoet aan de kwaliteitsklasse Licht verontreinigd",null,null,null,null,null,null,null,null,"Rbk, 5.25 lid 1 onder b",null,false]
[null,null,null,"voldoet aan de kwaliteitsklasse Matig verontreinigd",null,null,null,null,null,null,null,null,"Rbk, 5.25 lid 1 onder b",null,false]
[null,null,null,"voldoet aan de kwaliteitsklasse Sterk verontreinigd",null,null,null,null,null,null,null,null,"Rbk, 5.25 lid 1 onder b",null,false]
[null,null,"De partij is aanvullend gekwalificeerd voor de volgende toepassing:"]
[null,null,null,"voldoet aan de maximale waarden voor toepassing in een grootschalige ",null,null,null,null,null,null,null,null,null,null,false]
[null,null,null,"bodemtoepassing (GBT)"]
[null,null,null,"voldoet aan de maximale waarden voor verspreiden in zoet opp.water",null,null,null,null,null,null,null,null,null,null,false]
[null,null,null,"voldoet aan de maximale waarden voor verspreiden in zout opp.water",null,null,null,null,null,null,null,null,null,null,false]
[]
[null,null,"vermelding dat de partij baggerspecie een specifieke kwaliteit bezit (vereist voor",null,null,null,null,null,null,null,null,null,"Rbk, art. 5.26 lid 1 en Rbk, art. 1.1 onder 2",null,false]
[null,null,"de vermelde specifieke toepassing volgens § 4.124 BAL)"]
[null,null,null,"'emissiearme baggerspecie' voor grootschalig toepassen baggerspecie ",null,null,null,null,null,null,null,null,"Rbk, art. 1.1 onder 2a",null,false]
[null,null,null,"op of in de landbodem of een oppervlaktewaterlichaam"]
[null,null,null,"'voor verspreiden op de landbodem geschikte baggerspecie' voor het",null,null,null,null,null,null,null,null,"Rbk, art. 1.1 onder 2b",null,false]
[null,null,null,"verspreiden van baggerspecie op de landbodem"]
[null,null,null,"'voor verspreiden in zoet oppervlaktewater geschikte baggerspecie'",null,null,null,null,null,null,null,null,"Rbk, art. 1.1 onder 2c",null,false]
[null,null,null,"'voor verspreiden in zout oppervlaktewater geschikte baggerspecie'",null,null,null,null,null,null,null,null,"Rbk, art. 1.1 onder 2d",null,false]
[null,null,null,"'voor toepassen in een diepe plas geschikte baggerspecie'",null,null,null,null,null,null,null,null,"Rbk, art. 1.1 onder 2e",null,false]
[null,null,null,"'voor toepassing als deklaag in een diepe plas geschikte baggerspecie'",null,null,null,null,null,null,null,null,"Rbk, art. 1.1 onder 2f",null,false]
[]
[null,"Bij deze MV horen ",null,0,"bijlagen"]
[]
[]
[null,"(geautoriseerd) natuurlijk persoon die de milieuverklaring afgeeft",null,null,null,"naam:",null,"<naam>",null,null,null,null,"Rbk, art. 5.29 lid 1j",null,{"$f":"IF(H152=\"<naam>\",1,0)","v":1}]
[null,null,null,null,null,"datum:",null,"<datum>",null,"<uurtijd>",null,null,"Rbk, art. 5.29 lid 1j",null,{"$f":"IF(H153=\"<datum>\",1,0)","v":1}]
[null,null,null,null,null,"ondertekening:",null,"<handtekening>",null,null,null,null,"Rbk, art. 5.29 lid 1j",null,{"$f":"IF(H154=\"<handtekening>\",1,0)","v":1}]
[null,null,null,null,null,null,null,null,null,null,null,null,null,null,{"$f":"IF(J153=\"<uurtijd>\",1,0)","v":1}]
[]
[]
[null,"Disclaimer. Deze verklaring is geldig op het moment van ondertekening. Wat er daarna met de ontvangende bodem gebeurt is voor verantwoordelijkheid van de daadwerkelijke uitvoerder."]
[]
[]
[null,{"$f":"IF('Splitsing partij'!O9=FALSE,\"\",\"Kopie van Milieuverklaring gebaseerd op een bodemonderzoek\")","v":""}]
[null,{"$f":"IF('Splitsing partij'!O9=FALSE,\"\",\"Uniek nummer van deze kopie\")","v":""},null,null,null,null,"<nummer>",null,null,null,null,null,"Rbk art. 5.30 lid 3 onder a",{"$f":"'Splitsing partij'!O9","v":false},{"$f":"IF(G162=\"<nummer>\",1,0)","v":1},null,{"$f":"'Splitsing partij'!O6","v":1}]
[]
[null,{"$f":"IF('Splitsing partij'!O9=FALSE,\"\",\"Ondertekening:\")","v":""}]
[null,null,{"$f":"IF('Splitsing partij'!O9=FALSE,\"\",\"door de persoon die de kopie heeft afgegeven geautoriseerd persoon\")","v":""},null,null,null,null,null,null,null,null,null,"Rbk, art. 5.30 lid 3 onder b",null,false]
[null,null,{"$f":"IF('Splitsing partij'!O9=FALSE,\"\",\"danwel de natuurlijke persoon die de kopie onder eigen naam en verantwoordelijkheid afgeeft:\")","v":""},null,null,null,null,null,null,null,null,null,null,null,false]
[]
[null,{"$f":"IF('Splitsing partij'!O9=FALSE,\"\",\"Naam ondergetekende\")","v":""},null,null,{"$f":"IF('Splitsing partij'!O9=FALSE,\"\",\"<naam>\")","v":""},null,null,null,null,null,null,null,null,null,{"$f":"IF(E168=\"<naam>\",1,0)","v":0}]
[]
[]
[null,{"$f":"IF('Splitsing partij'!O9=FALSE,\"\",\"Datum van ondertekening\")","v":""},null,null,{"$f":"IF('Splitsing partij'!O9=FALSE,\"\",\"<datum>\")","v":""},null,null,null,null,null,null,null,null,null,{"$f":"IF(E171=\"<datum>\",1,0)","v":0}]

{"sheet":"Splitsing partij","index":1,"n_rows":37,"n_cols":15,"rows_kept":37,"cut":false,"hidden":false,"merged":[[0,1,0,9],[2,1,2,9],[10,6,10,8],[4,1,7,5],[25,1,27,8],[4,6,6,8],[4,9,6,9],[33,4,34,9],[36,4,37,9],[8,2,8,9],[12,6,14,8],[15,6,17,9],[18,6,20,9],[21,6,23,9]]}
[null,"Afleverbon voor splitsing \n(bestemd voor eenmalig gebruik)",null,null,null,null,null,null,null,null,null,null,"Rbk 2022, par. 5.2 MV op basis van een bodemonderzoek, art. 5.30 lid 1"]
[]
[null,"Verklaring gebaseerd op een bodemonderzoek"]
[]
[null,"Uniek nummer (van de kopie) van de verklaring op grond van een bodemonderzoek die betrekking heeft op de gesplitste partij:",null,null,null,null,{"$f":"'MV obv bodemonderzoek'!G6","v":"<nummer>"},null,null,"<volg nr. Kopie>",null,null,"Rbk, art. 5.30 lid 2 onder e"]
[null,null,null,null,null,null,null,null,null,null,null,null,"Rbk, art. 5.30 lid 2 onder f",null,{"$f":"IF(J5=\"<volg nr. Kopie>\",1,0)","v":1}]
[]
[]
[null,null,"Een kopie van de Verklaring o.b.v. bodemonderzoek is bijgevoegd.",null,null,null,null,null,null,null,null,null,"Rbk, art. 5.30 lid 3",null,false]
[]
[null,"Uniek nummer van de Afleverbon:",null,null,null,null,"<nummer>",null,null,null,null,null,"Rbk, art. 5.30 lid 2 onder f",null,{"$f":"IF(G11=\"<nummer>\",1,0)","v":1}]
[]
[null,null,null,null,null,null,"<ton>"]
[null,"De grootte van de afgesplitste partij in tonnen:",null,null,null,null,null,null,null,"ton",null,null,"Rbk, art. 5.30 lid 2 onder d",null,{"$f":"IF(G13=\"<ton>\",1,0)","v":1}]
[]
[null,null,null,null,null,null,"<naam><adres>",null,null,null,null,null,null,null,{"$f":"IF(G16=\"<naam><adres>\",1,0)","v":1}]
[null,"Naam en adres van de persoon die de partij heeft gesplitst:",null,null,null,null,null,null,null,null,null,null,"Rbk, art. 5.30 lid 2 onder a"]
[]
[null,null,null,null,null,null,"<naam><adres>",null,null,null,null,null,null,null,{"$f":"IF(G19=\"<naam><adres>\",1,0)","v":1}]
[null,"Naam en adres van de persoon die de afleverbon afgeeft:",null,null,null,null,null,null,null,null,null,null,"Rbk, art. 5.30 lid 2 onder b"]
[]
[null,null,null,null,null,null,"<naam><adres>",null,null,null,null,null,null,null,{"$f":"IF(G22=\"<naam><adres>\",1,0)","v":1}]
[null,"Naam en adres van de 1e afnemer van de gesplistte partij:",null,null,null,null,null,null,null,null,null,null,"Rbk, art. 5.30 lid 2 onder c"]
[]
[]
[null,"Ondergetekende verklaart hierbij dat de afgesplitste partij een deel vormde van de partij waarop de verklaring op grond van een bodemonderzoek betrekking heeft.",null,null,null,null,null,null,null,null,null,null,"Rbk, art. 5.30 lid 2 onder g"]
[]
[]
[]
[null,"Ondertekening:"]
[null,null,"door de persoon die de afleverbon heeft afgegeven geautoriseerd persoon",null,null,null,null,null,null,null,null,null,"Rbk, art. 5.30 lid 2 onder h",null,false]
[null,null,"danwel de natuurlijke persoon die de aflverbon onder eigen naam en verantwoordelijkheid afgeeft:",null,null,null,null,null,null,null,null,null,null,null,false]
[]
[null,"Naam ondergetekende",null,null,"<naam>",null,null,null,null,null,null,null,null,null,{"$f":"IF(E34=\"<naam>\",1,0)","v":1}]
[]
[]
[null,"Datum van ondertekening",null,null,"<datum>",null,null,null,null,null,null,null,null,null,{"$f":"IF(E37=\"<datum>\",1,0)","v":1}]

{"sheet":"schoon-licht-matig-sterk","index":2,"n_rows":0,"n_cols":0,"rows_kept":0,"cut":false,"hidden":false,"merged":[]}